[Event "Summer Chess Classic-A 2019"]
[Site "Saint Louis"]
[Date "2019.06.25"]
[Round "7.2"]
[White "Swiercz, Dariusz"]
[Black "Howell, David W L"]
[Result "1/2-1/2"]
[ECO "E06"]
[WhiteElo "2667"]
[BlackElo "2692"]
[Annotator "ChessBase"]
[PlyCount "221"]
[EventDate "2019.06.18"]
[EventType "tourn"]
[EventCountry "USA"]
[SourceTitle "playchess.com"]
[Source "ChessBase"]
[SourceQuality "1"]
[TimeControl "40/5400+30:1800+30"]

1. d4 {[%emt 0:00:00]} Nf6 {[%emt 0:01:19]} 2. c4 {[%emt 0:00:00]} e6 {[%emt 0:00:20]} 3. g3 {[%emt 0:00:06]} d5 {[%emt 0:00:33]} 4. Bg2 {[%emt 0:00:05]} Be7 {[%emt 0:00:06]} 5. Nf3 {[%emt 0:00:44]} O-O {[%emt 0:00:09]} 6. O-O {[%emt 0:00:52]} dxc4 {[%emt 0:00:21]} 7. Qc2 {[%emt 0:00:03]} a6 {[%emt 0:01:32]} 8. a4 {[%emt 0:00:32]} Bd7 {[%emt 0:00:36]} 9. Qxc4 {[%emt 0:00:40]} Bc6 {[%emt 0:00:09]} 10. Bf4 {[%emt 0:00:24]} Bd6 {[%emt 0:04:09]} 11. Qc1 {[%emt 0:04:19]} a5 {[%emt 0:09:27]} 12. Nc3 {[%emt 0:00:43]} Na6 {[%emt 0:00:45]} 13. Bd2 {[%emt 0:01:44]} Nb4 {[%emt 0:11:43]} 14. Qb1 {[%emt 0:07:18]} Bxf3 {[%emt 0:03:24]} 15. Bxf3 {[%emt 0:00:14]} c6 {[%emt 0:00:17]} 16. Ne4 {[%emt 0:32:51]} Nxe4 {[%emt 0:09:30]} 17. Qxe4 {[%emt 0:01:29]} Qe7 {[%emt 0:00:06]} 18. Rad1 {[%emt 0:09:46]} Rad8 {[%emt 0:05:09]} 19. Bc3 {[%emt 0:03:22]} Bc7 {[%emt 0:00:22]} 20. b3 {[%emt 0:09:10]} Rd7 {[%emt 0:02:45]} 21. Rd2 {[%emt 0:05:18]} Rfd8 {[%emt 0:16:13]} 22. Rfd1 {[%emt 0:00:21]} h6 {[%emt 0:09:54]} 23. Qb1 {[%emt 0:05:59]} Bb6 {[%emt 0:08:31]} 24. e3 {[%emt 0:05:11]} Nd5 {[%emt 0:00:29]} 25. Bb2 {[%emt 0:00:10]} Nb4 {[%emt 0:00:06]} 26. Bc3 {[%emt 0:03:09]} Nd5 {[%emt 0:00:13]} 27. Ba1 {[%emt 0:00:33]} Nb4 {[%emt 0:03:58]} 28. Qc1 {[%emt 0:01:08]} Rd6 {[%emt 0:02:16]} 29. Qc3 {[%emt 0:03:15]} Qf6 {[%emt 0:06:33]} 30. Kg2 {[%emt 0:01:10]} Qg6 {[%emt 0:00:03]} 31. Bb2 {[%emt 0:02:07]} R6d7 {[%emt 0:00:07]} 32. h4 {[%emt 0:02:08]} Bc7 {[%emt 0:02:33]} 33. Qc1 {[%emt 0:00:45]} e5 {[%emt 0:00:44]} 34. h5 {[%emt 0:00:40]} Qf5 {[%emt 0:01:18]} 35. dxe5 {[%emt 0:00:40]} Rxd2 {[%emt 0:01:15]} 36. Rxd2 {[%emt 0:00:01]} Rxd2 {[%emt 0:00:33]} 37. Qxd2 {[%emt 0:00:06]} Nd3 {[%emt 0:00:29]} 38. e4 {[%emt 0:01:23]} Qd7 {[%emt 0:00:03]} 39. Bg4 {[%emt 0:00:31]} Ne1+ {[%emt 0:00:58]} 40. Qxe1 {[%emt 0:00:00]} Qxg4 {[%emt 0:00:00]} 41. f3 {[%emt 0:12:22]} Qxh5 {[%emt 0:01:58]} 42. Qd2 {[%emt 0:00:11]} Qg5 {[%emt 0:07:46]} 43. Qxg5 {[%emt 0:15:44]} hxg5 {[%emt 0:00:20]} 44. Kh3 {[%emt 0:00:02]} Kh7 {[%emt 0:00:41]} 45. Kg4 {[%emt 0:00:04]} Kg6 {[%emt 0:00:10]} 46. Bc3 {[%emt 0:03:54]} b5 {[%emt 0:01:54]} 47. f4 {[%emt 0:00:08]} gxf4 {[%emt 0:00:06]} 48. gxf4 {[%emt 0:00:03]} Kh7 {[%emt 0:01:58]} 49. Kf5 {[%emt 0:02:26]} Bd8 {[%emt 0:11:28]} 50. e6 {[%emt 0:00:08]} Kg8 {[%emt 0:01:02]} 51. e7 {[%emt 0:00:58]} Bxe7 {[%emt 0:00:04]} 52. Bxa5 {[%emt 0:00:02]} bxa4 {[%emt 0:00:14]} 53. bxa4 Kf8 {[%emt 0:00:12]} 54. Bb6 {[%emt 0:01:27]} Ke8 {[%emt 0:00:10]} 55. a5 {[%emt 0:00:16]} Kd7 {[%emt 0:00:07]} 56. a6 {[%emt 0:00:07]} Kc8 {[%emt 0:00:44]} 57. Kg4 {[%emt 0:01:09]} g6 {[%emt 0:01:20]} 58. Kf3 {[%emt 0:00:22]} Kb8 {[%emt 0:00:55]} 59. Ke3 {[%emt 0:00:34]} Bd6 {[%emt 0:00:35]} 60. f5 {[%emt 0:00:27]} gxf5 {[%emt 0:01:05]} 61. exf5 {[%emt 0:00:01]} Ka8 {[%emt 0:01:18]} 62. Kd4 {[%emt 0:00:05]} Be7 {[%emt 0:03:28]} 63. Bc5 {[%emt 0:00:37]} Bf6+ {[%emt 0:00:18]} 64. Kd3 {[%emt 0:00:27]} Kb8 {[%emt 0:00:59]} 65. Kc4 {[%emt 0:00:05]} Kc7 {[%emt 0:02:16]} 66. Ba7 {[%emt 0:00:09]} Bh4 {[%emt 0:01:14]} 67. Kd3 {[%emt 0:00:13]} Bg5 {[%emt 0:01:01]} 68. Bc5 {[%emt 0:00:09]} Kb8 {[%emt 0:00:43]} 69. Ke4 {[%emt 0:00:02]} Bf6 {[%emt 0:00:20]} 70. Bb6 {[%emt 0:01:29]} Ka8 {[%emt 0:00:32]} 71. Kf4 {[%emt 0:01:10]} Kb8 {[%emt 0:00:11]} 72. Kg4 {[%emt 0:00:14]} Ka8 {[%emt 0:00:05]} 73. Kh5 {[%emt 0:00:39]} Bg7 {[%emt 0:00:05]} 74. Kg5 {[%emt 0:00:05]} Kb8 {[%emt 0:00:05]} 75. Bc5 {[%emt 0:00:12]} Ka8 {[%emt 0:00:12]} 76. Kf4 {[%emt 0:00:22]} Bc3 {[%emt 0:00:45]} 77. Ke4 {[%emt 0:00:15]} Bf6 {[%emt 0:00:05]} 78. Bd4 {[%emt 0:00:24]} Be7 {[%emt 0:00:11]} 79. Ke5 {[%emt 0:01:34]} Kb8 {[%emt 0:00:04]} 80. Bf2 {[%emt 0:00:22]} Ka8 {[%emt 0:00:12]} 81. Bb6 {[%emt 0:00:17]} Kb8 {[%emt 0:00:04]} 82. Kd4 {[%emt 0:00:12]} Ka8 {[%emt 0:01:03]} 83. Kc4 {[%emt 0:00:07]} Bd6 {[%emt 0:00:58]} 84. Bf2 {[%emt 0:00:22]} Be7 {[%emt 0:00:46]} 85. Bc5 {[%emt 0:00:18]} Bh4 {[%emt 0:01:11]} 86. Bg1 {[%emt 0:01:56]} Be7 {[%emt 0:00:11]} 87. Bf2 {[%emt 0:00:01]} Bd6 {[%emt 0:00:23]} 88. Bc5 {[%emt 0:00:53]} Bg3 {[%emt 0:00:17]} 89. Kb4 {[%emt 0:00:10]} Be1+ {[%emt 0:00:51]} 90. Kb3 {[%emt 0:01:31]} Bg3 {[%emt 0:00:35]} 91. Kc2 {[%emt 0:00:12]} Bf4 {[%emt 0:00:45]} 92. Kc3 {[%emt 0:00:28]} Bg3 {[%emt 0:00:08]} 93. Kd2 {[%emt 0:00:17]} Bb8 {[%emt 0:00:51]} 94. Ke3 {[%emt 0:00:39]} Be5 {[%emt 0:00:27]} 95. Kf3 {[%emt 0:00:52]} Bf6 {[%emt 0:01:13]} 96. Kg4 {[%emt 0:00:21]} Be5 {[%emt 0:00:10]} 97. Kg5 {[%emt 0:00:43]} Bg7 {[%emt 0:00:05]} 98. Bb6 {[%emt 0:01:00]} Kb8 {[%emt 0:00:06]} 99. Be3 {[%emt 0:00:20]} Ka8 {[%emt 0:00:09]} 100. Bc5 {[%emt 0:00:05]} Kb8 {[%emt 0:00:09]} 101. f6 {[%emt 0:01:03]} Bh8 {[%emt 0:00:04]} 102. Bd4 {[%emt 0:00:14]} Ka8 {[%emt 0:00:05]} 103. Kf5 {[%emt 0:00:51]} Kb8 {[%emt 0:00:07]} 104. Bc5 {[%emt 0:00:16]} Ka8 {[%emt 0:00:04]} 105. Bf8 {[%emt 0:00:12]} Bxf6 {[%emt 0:00:06]} 106. Kxf6 {[%emt 0:00:03]} Ka7 {[%emt 0:00:04]} 107. Kxf7 {[%emt 0:00:05]} Kb6 {[%emt 0:00:08]} 108. Ke6 {[%emt 0:00:05]} Ka7 {[%emt 0:00:05]} 109. Kd7 {[%emt 0:00:04]} Kb6 {[%emt 0:00:04]} 110. Bc5+ {[%emt 0:00:05]} Kxa6 {[%emt 0:00:04]} 111. Kxc6 {[%emt 0:00:04]} 1/2-1/2